bitfinex-derivatives/quotes_ETHF0:USTF0_20250624
["timestamp","ask_amount","ask_price","bid_price","bid_amount"]
[1750733650022,1.12166,2393.1,2393.0,0.83524]
[1750733650326,0.7149,2393.6,2393.5,0.83506]
[1750733650525,4.29411287,2393.6,2393.5,0.83506]
[1750733653223,3.2078,2394.0,2393.9,0.83492]
[1750733653729,4.32946,2394.0,2393.9,0.83492]
[1750733657027,1.12166,2394.0,2393.9,0.83492]
[1750733657223,2.7687,2394.2,2394.1,0.83485]
[1750733657423,3.89036,2394.2,2394.1,0.83485]
[1750733658419,4.7252,2394.2,2393.8,10.1888]
[1750733658629,1.12166,2394.1,2393.8,6.981]
[1750733658829,1.3987,2394.0,2393.8,6.981]
[1750733659322,1.3987,2394.0,2393.9,0.8349]
[1750733659928,2.52036,2394.0,2393.9,0.8349]
[1750733661932,3.35525,2394.0,2393.8,7.81593]
[1750733662233,1.12166,2393.9,2393.8,7.81593]
[1750733662530,2.48806,2393.9,2393.8,7.81593]
[1750733663428,1.12166,2393.9,2393.8,7.81593]
[1750733664135,2.7106,2394.2,2394.1,0.83485]
[1750733664329,1.3442,2394.2,2394.1,0.83485]
[1750733664536,3.30068,2394.2,2394.0,0.83487]
[1750733664722,3.51362,2394.2,2394.0,0.83487]
[1750733664928,1.12166,2394.1,2394.0,0.83487]
[1750733665226,2.98868055,2394.1,2393.9,0.8986515]
[1750733665424,1.12166,2394.0,2393.9,0.8986515]
[1750733665934,1.3346,2394.1,2394.0,0.83489]
[1750733666134,2.36670983,2394.1,2394.0,0.83489]
[1750733666337,3.48836983,2394.1,2394.0,0.83489]
[1750733666835,2.15376983,2394.1,2394.0,0.83489]
[1750733668438,2.98863983,2394.1,2393.9,0.8986515]
[1750733668732,2.15376363,2394.0,2393.9,0.8986515]
[1750733669439,2.15376363,2394.0,2393.9,0.8349]
[1750733669737,2.98867363,2394.0,2393.8,7.81594]
[1750733669939,1.95658,2393.9,2393.8,7.81594]
[1750733670130,4.37103589,2393.9,2393.8,7.81594]
[1750733670330,4.37103589,2393.9,2393.8,6.981]
[1750733672238,3.33948,2393.9,2393.8,6.981]
[1750733672438,0.83498,2393.8,2393.6,0.83502]
[1750733672639,2.56756,2393.7,2393.6,0.83502]
[1750733672839,3.25596,2393.7,2393.6,0.83502]
[1750733673039,3.25596,2393.7,2393.5,7.81504]
[1750733673235,1.12166,2393.6,2393.5,7.81504]
[1750733673645,2.1343,2393.7,2393.5,7.81504]
[1750733673846,1.12166,2393.6,2393.5,7.81504]
[1750733674244,2.1343,2393.7,2393.6,0.83503]
[1750733674444,3.16641532,2393.7,2393.6,0.83503]
[1750733674647,4.28807532,2393.7,2393.6,0.83503]
[1750733674943,4.28807532,2393.7,2393.5,7.81504]
[1750733675142,1.12166,2393.6,2393.5,7.81504]
[1750733675344,1.12166,2393.6,2393.5,6.98]
[1750733675645,4.64205398,2393.6,2393.2,6.98]
[1750733675849,4.32946,2393.3,2393.1,0.83518]
[1750733676050,1.12166,2393.2,2393.1,0.83518]
[1750733676550,1.83276,2393.2,2393.1,0.83518]
[1750733676944,2.46274604,2394.1,2393.1,34.3438]
[1750733677149,3.2078,2394.4,2394.0,2.48795825]
[1750733677452,3.2078,2395.1,2394.9,0.83457]
[1750733677648,2.15449692,2395.0,2394.9,0.83457]
[1750733678047,7.15449692,2395.0,2394.6,3.2078]
[1750733678247,1.12166,2394.7,2394.3,38.81075825]
[1750733678448,1.12166,2394.6,2394.4,1.4204]
[1750733678746,1.12166,2394.6,2394.3,36.3228]
[1750733679349,1.12166,2394.6,2394.5,0.83471]
[1750733680450,0.83455,2395.0,2394.3,36.3228]
[1750733680651,1.12166,2394.7,2394.6,0.83468]
[1750733681045,1.322,2394.9,2394.6,0.83468]
[1750733681356,1.12166,2394.7,2394.6,0.83468]
[1750733681743,1.322,2394.9,2394.7,0.83464]
[1750733681945,4.73723,2395.1,2394.8,0.83461]
[1750733682146,1.03010849,2395.0,2394.8,0.83461]
[1750733682453,2.15176849,2394.9,2394.8,0.83461]
[1750733683653,1.12166,2394.9,2394.8,0.83461]
[1750733683848,3.2078,2395.1,2395.0,0.83454]
[1750733684057,1.12166,2395.1,2395.0,0.83454]
[1750733688251,1.12166,2395.1,2394.9,0.83455]
[1750733688553,2.45546,2395.1,2394.9,0.83455]
[1750733688957,2.45546,2395.1,2395.0,0.83454]
[1750733689555,3.28997,2395.1,2394.9,0.83456]
[1750733689755,1.12166,2395.0,2394.8,7.79159]
[1750733690054,1.12166,2395.0,2394.8,6.957]
[1750733690257,1.12166,2395.0,2394.9,0.83457]
[1750733690949,1.12166,2395.0,2394.8,7.79159]
[1750733691156,1.12166,2395.0,2394.9,0.83457]
[1750733692150,0.83444,2395.3,2394.8,6.957]
[1750733692351,1.12166,2395.0,2394.9,0.83457]
[1750733692857,1.4063,2395.3,2395.2,0.83447]
[1750733693051,2.24074,2395.3,2395.1,0.83448]
[1750733693558,1.12166,2395.2,2395.1,0.83448]
[1750733694158,1.12166,2395.2,2395.0,0.83452]
[1750733694354,1.12166,2395.0,2394.9,0.83456]
[1750733694554,0.83464,2394.7,2394.5,0.8347]
[1750733694860,1.12166,2394.6,2394.5,0.8347]
[1750733695058,0.83475,2394.4,2394.2,7.78981]
[1750733695256,1.12166,2394.3,2394.2,7.78981]
[1750733696161,1.12166,2394.3,2394.2,0.83481]
[1750733697657,9.32946,2394.3,2393.5,6.955]
[1750733697957,1.12166,2393.8,2393.6,0.83503]
[1750733698162,1.12166,2393.8,2393.7,0.83499]
[1750733698656,0.6748,2394.4,2394.2,0.83479]
[1750733698852,1.12166,2394.3,2394.0,6.955]
[1750733699052,1.95646,2394.3,2394.0,7.78986]
[1750733699253,1.95646,2394.3,2394.0,6.955]
[1750733699455,1.12166,2394.3,2394.1,0.83484]
[1750733699758,2.53006,2394.3,2394.1,0.83484]
[1750733700058,3.36484,2394.3,2394.1,0.83484]
[1750733700763,2.53006,2394.3,2394.1,0.83484]
[1750733701256,2.53006,2394.3,2394.0,6.955]
[1750733701456,3.36484,2394.3,2394.1,0.83483]
[1750733702361,6.57265,2394.3,2394.0,0.83487]
[1750733702560,6.57265,2394.3,2394.1,0.83485]
[1750733702761,4.6162,2394.3,2394.2,0.83482]
[1750733703064,3.2078,2394.3,2394.2,0.83482]
[1750733703263,4.32946,2394.3,2394.2,0.83482]
[1750733704159,3.2078,2394.3,2394.2,0.83482]
[1750733704664,3.2078,2394.3,2394.1,0.83483]
[1750733705564,3.2078,2394.3,2394.2,0.83482]
[1750733706254,4.32946,2394.3,2394.1,0.83483]
[1750733706457,3.2078,2394.3,2394.2,0.83482]
[1750733706662,5.57218495,2394.3,2394.2,0.83482]
[1750733706862,6.69384495,2394.3,2394.2,0.83482]
[1750733707966,6.69384495,2394.3,2394.1,0.83483]
[1750733708168,4.5427,2394.3,2394.1,0.83483]
[1750733708471,1.12166,2394.2,2394.1,0.83483]
[1750733708663,3.2078,2394.3,2394.2,0.83482]
[1750733708864,3.2078,2394.9,2394.3,0.83478]
[1750733709068,3.2078,2394.9,2394.7,0.83462]
[1750733709268,3.2078,2394.9,2394.8,0.83461]
[1750733709570,4.23921974,2394.9,2394.8,0.83461]
[1750733709770,5.36087974,2394.9,2394.7,0.83461]
[1750733709965,1.12166,2394.5,2394.2,29.3178]
[1750733710171,3.2078,2394.6,2394.4,0.83471]
[1750733710469,4.5963,2394.6,2394.5,0.83471]
[1750733710669,5.71796,2394.6,2394.5,0.83471]
[1750733710874,2.51016,2394.6,2394.5,0.83471]
[1750733711172,1.12166,2394.6,2394.5,0.83471]
[1750733713372,3.2078,2394.9,2394.8,0.83461]
[1750733713573,4.24206152,2394.9,2394.8,0.83461]
[1750733713775,5.36372152,2394.9,2394.8,0.83461]
[1750733715868,4.24206152,2394.9,2394.8,0.83461]
[1750733716167,2.46274604,2395.5,2394.8,4.04241]
[1750733716374,1.12166,2395.1,2395.0,0.83454]
[1750733716770,1.3826,2395.4,2395.3,0.83444]
[1750733717176,2.50426,2395.4,2395.3,0.83444]
[1750733719067,1.12166,2395.4,2395.3,0.83444]
[1750733719469,0.706,2395.5,2395.4,0.8344]
[1750733719678,1.82766,2395.5,2395.4,0.8344]
[1750733725782,3.2078,2395.7,2395.6,0.83433]
[1750733726285,4.32946,2395.7,2395.6,0.83433]
[1750733727881,0.6636,2395.9,2395.8,0.83426]
[1750733728081,3.9111,2396.1,2395.7,4.69961182]
[1750733728286,3.9111,2396.1,2396.0,0.83419]
[1750733728678,5.03276,2396.1,2396.0,0.83419]
[1750733729680,6.40016,2396.1,2396.0,0.83419]
[1750733731686,6.40016,2396.1,2395.5,10.89456]
[1750733731687,7.23431,2396.1,2395.9,0.8342]
[1750733731885,1.12166,2396.0,2395.9,0.8342]
[1750733732086,2.49916,2396.0,2395.9,0.8342]
[1750733733188,2.49916,2396.0,2395.8,6.944]
[1750733733189,3.9111,2396.1,2396.0,0.83419]
[1750733733382,5.03276,2396.1,2396.0,0.83419]
[1750733733883,5.03276,2396.1,2395.9,0.83422]
[1750733734185,5.03276,2396.1,2396.0,0.83419]
[1750733734389,6.41026,2396.1,2396.0,0.83419]
[1750733735984,0.83419,2396.0,2395.8,7.77724]
[1750733736185,2.51996,2395.9,2395.8,0.83424]
[1750733736390,0.83432,2395.7,2395.3,6.943]
[1750733736690,1.12166,2395.5,2395.4,0.8344]
[1750733737283,1.95603,2395.5,2395.3,7.77742]
[1750733737484,1.12166,2395.4,2395.3,7.77742]
[1750733737685,3.34436,2395.4,2395.2,0.83445]
[1750733737991,2.22271,2395.4,2395.2,7.77746]
[1750733738188,1.12166,2395.3,2395.2,7.77746]
[1750733738385,2.50996,2395.3,2395.2,7.77746]
[1750733739080,2.50996,2395.3,2395.2,6.943]
[1750733739684,2.50996,2395.3,2395.2,7.77747]
[1750733741489,3.34439,2395.3,2395.2,6.943]
[1750733742085,2.50996,2395.3,2395.2,7.77747]
[1750733742589,2.21815,2395.6,2395.2,6.943]
[1750733742784,2.149064,2395.5,2395.4,0.83439]
[1750733745095,2.983424,2395.5,2395.3,0.83441]
[1750733745392,1.027404,2395.4,2395.3,0.83441]
[1750733746893,2.983474,2395.4,2395.2,0.83446]
[1750733747196,3.479064,2395.3,2395.2,0.83446]
[1750733747391,3.479064,2395.3,2395.2,0.83447]
[1750733747392,4.313494,2395.3,2395.2,0.83447]
[1750733748096,3.479064,2395.3,2395.2,0.83447]
[1750733749398,4.313494,2395.3,2395.1,0.83448]
[1750733749703,1.12166,2395.2,2395.1,0.83448]
[1750733750199,1.33,2395.3,2395.2,0.83447]
[1750733750399,2.35992294,2395.3,2395.2,0.83447]
[1750733750699,3.48158294,2395.3,2395.2,0.83447]
[1750733751900,4.31601294,2395.3,2395.2,0.83447]
[1750733752899,3.48158294,2395.3,2395.2,0.83447]
[1750733753494,4.31601294,2395.3,2395.2,0.83447]
[1750733753800,4.31601294,2395.3,2395.1,0.83448]
[1750733754002,1.81176,2395.2,2395.1,0.83448]
[1750733754300,1.81176,2395.2,2395.0,6.932]
[1750733754301,2.84152048,2395.2,2395.0,6.932]
[1750733754492,4.35014536,2395.1,2395.0,6.932]
[1750733755891,4.35014536,2395.1,2394.8,4.04239]
[1750733755892,0.83455,2395.0,2394.8,4.04239]
[1750733756200,1.12166,2394.9,2394.8,4.04239]
[1750733756399,2.87775,2395.0,2394.8,4.04239]
[1750733756601,1.12166,2394.9,2394.8,4.04239]
[1750733757004,0.7109,2395.0,2394.9,0.83457]
[1750733757503,2.8618886,2395.0,2394.9,0.83457]
[1750733758007,0.6901,2395.2,2395.1,0.8345]
[1750733758204,0.83453,2395.1,2394.9,2.48401492]
[1750733758401,2.16683,2395.1,2394.9,3.31858492]
[1750733758599,0.6901,2395.2,2395.1,0.8345]
[1750733758902,2.84089865,2395.2,2395.1,3.31851492]
[1750733759104,2.15079865,2395.2,2395.1,3.31851492]
[1750733759798,1.12166,2395.2,2395.1,3.31851492]
[1750733760103,2.15087515,2395.2,2395.1,3.31851492]
[1750733761802,2.15087515,2395.2,2395.0,0.83451]
[1750733762106,2.15087515,2395.1,2395.0,0.83451]
[1750733762307,4.21687515,2395.1,2395.0,0.83451]
[1750733764007,3.09521515,2395.1,2395.0,0.83451]
[1750733764208,1.72121515,2395.1,2395.0,0.83451]
[1750733765199,0.83455,2395.0,2394.8,4.04241]
[1750733765401,0.83468,2394.6,2394.5,3.2078]
[1750733765705,0.83474,2394.5,2394.1,0.8985915]
[1750733765906,1.12166,2394.3,2394.2,0.83482]
[1750733766111,1.03187773,2394.3,2394.2,3.31883492]
[1750733766611,0.701,2394.5,2394.4,0.83475]
[1750733766806,1.12166,2394.4,2394.2,3.31879492]
[1750733767011,1.03123726,2394.3,2394.2,3.31879492]
[1750733767313,1.03123726,2394.3,2394.1,0.83483]
[1750733767512,1.12166,2394.2,2394.1,0.83483]
[1750733767913,1.4361,2394.4,2394.3,0.83478]
[1750733768214,2.46678219,2394.4,2394.3,2.48401492]
[1750733768407,4.42318219,2394.4,2394.3,2.48401492]
[1750733769219,4.42318219,2394.4,2394.1,3.31884492]
[1750733769417,2.15234219,2394.3,2394.2,0.83481]
[1750733770209,1.12166,2394.3,2394.2,0.83481]
[1750733774914,1.95644,2394.3,2394.2,0.83481]
[1750733775119,1.95644,2394.3,2394.1,3.31884492]
[1750733775423,1.95646,2394.3,2394.1,3.31885492]
[1750733778332,1.95647,2394.2,2394.1,3.31885492]
[1750733778627,3.32547,2394.2,2394.1,3.31886492]
[1750733779024,2.49066,2394.2,2394.1,3.31886492]
[1750733780029,2.49066,2394.2,2394.1,3.38261642]
[1750733781127,2.49066,2394.2,2394.1,3.31886492]
[1750733781327,3.32547,2394.2,2394.1,3.31886492]
[1750733781627,3.32547,2394.2,2394.1,2.48401492]
[1750733782031,2.49066,2394.2,2394.1,3.31886492]
[1750733782528,3.32547,2394.2,2394.1,3.31886492]
[1750733785335,3.32547,2394.2,2394.0,0.83486]
[1750733785531,0.83498,2393.8,2393.6,10.23901492]
[1750733785729,1.12166,2393.7,2393.6,10.23901492]
[1750733786127,0.83498,2393.8,2393.6,10.23901492]
[1750733786329,1.95665,2393.7,2393.6,10.23901492]
[1750733786933,1.12166,2393.7,2393.6,10.23901492]
[1750733787328,1.95665,2393.7,2393.6,10.23901492]
[1750733788230,1.12166,2393.7,2393.6,10.23901492]
[1750733797444,0.83493,2393.9,2393.8,0.83495]
[1750733797637,2.15058634,2393.9,2393.8,0.83495]
[1750733797833,2.98550634,2393.9,2393.8,2.48401492]
[1750733798143,2.98550634,2393.9,2393.7,0.83496]
[1750733798144,4.37550634,2393.9,2393.7,0.83496]
[1750733798344,3.71283634,2393.8,2393.6,3.38276642]
[1750733798641,2.46026,2393.7,2393.6,3.38276642]
[1750733798842,3.16166,2393.7,2393.6,3.38276642]
[1750733799033,3.2078,2394.1,2393.9,0.83492]
[1750733799240,2.8299048,2394.0,2393.9,0.83492]
[1750733799445,2.8299048,2394.0,2393.9,3.31893492]
[1750733800345,1.7082448,2394.0,2393.9,3.31893492]
[1750733800546,2.1509048,2394.0,2393.9,3.31893492]
[1750733801533,2.1509048,2394.0,2393.8,3.2078]
[1750733801739,2.1509048,2393.9,2393.8,6.52675492]
[1750733802043,2.8299048,2393.9,2393.8,6.52675492]
[1750733802240,3.6648248,2393.9,2393.8,5.69181492]
[1750733802550,2.8299048,2393.9,2393.8,6.52676492]
[1750733803042,9.1511048,2393.9,2393.6,0.0637515]
[1750733803237,2.08757,2393.6,2392.9,0.83524]
[1750733803437,4.32946,2393.1,2392.8,2.48401492]
[1750733803637,4.32946,2393.1,2392.9,0.83525]
[1750733803844,4.32946,2393.1,2393.0,3.31924492]
[1750733803845,2.44286,2393.1,2393.0,3.31924492]
[1750733804041,4.529,2393.4,2393.0,2.48401492]
[1750733804347,2.15355719,2393.3,2393.2,3.31914492]
[1750733806146,2.15355719,2393.3,2393.2,2.48401492]
[1750733806746,2.15355719,2393.3,2393.2,3.31917492]
[1750733807142,2.15355719,2393.3,2393.2,2.48401492]
[1750733807348,2.98868719,2393.3,2393.1,1.32838]
[1750733807542,3.40589,2393.3,2393.1,3.81239492]
[1750733807948,2.57076,2393.3,2393.1,3.81239492]
[1750733810149,1.12166,2393.2,2393.1,3.31919492]
[1750733811137,1.12166,2393.2,2392.8,23.9]
[1750733811338,1.12166,2392.9,2392.8,23.9]
[1750733811542,1.95694,2392.9,2392.7,7.73833]
[1750733811741,1.12166,2392.8,2392.7,10.22234492]
[1750733811938,1.95696,2392.8,2392.7,6.903]
[1750733812144,1.12166,2392.8,2392.7,6.903]
[1750733812339,1.12166,2392.8,2392.7,7.73834]
[1750733812546,1.12166,2392.8,2392.7,6.903]
[1750733813945,1.12166,2392.8,2392.7,7.73834]
[1750733814152,1.12166,2392.8,2392.7,6.903]
[1750733814452,1.12166,2392.8,2392.6,0.83536]
[1750733814653,1.12166,2392.7,2392.6,0.83536]
[1750733814852,1.12166,2392.7,2392.5,27.21939492]
[1750733815053,1.3505,2392.8,2392.5,26.38401492]
[1750733815345,1.12166,2392.7,2392.6,0.83537]
[1750733815652,1.12166,2392.7,2392.6,3.31938492]
[1750733815842,4.5583,2392.8,2392.6,3.31938492]
[1750733816043,1.12166,2392.7,2392.6,3.31938492]
[1750733816453,4.5583,2392.8,2392.6,3.31938492]
[1750733816750,1.12166,2392.7,2392.6,3.31938492]
[1750733816950,1.12166,2392.7,2392.6,0.83537]
[1750733817151,5.3936,2392.8,2392.6,0.83537]
[1750733817352,1.12166,2392.7,2392.6,0.83537]
[1750733817542,2.50946,2392.7,2392.6,0.83537]
[1750733817748,2.50946,2392.7,2392.4,9.38801492]
[1750733817950,1.12166,2392.6,2392.5,0.8354]
[1750733818452,1.12166,2392.6,2392.4,9.38801492]
[1750733818654,2.22315,2392.7,2392.5,0.83539]
[1750733818953,1.12166,2392.5,2392.4,10.22345492]
[1750733819147,1.12166,2392.5,2392.4,3.31945492]
[1750733819353,1.12166,2392.5,2392.4,0.83544]
[1750733821557,1.12166,2392.5,2392.4,3.31945492]
[1750733822155,0.6688,2392.6,2392.5,0.83541]
[1750733822451,6.905,2392.9,2392.5,6.905]
[1750733822452,0.83537,2392.7,2392.5,6.905]
[1750733822653,1.95703,2392.7,2392.6,2.48401492]
[1750733823260,2.54366,2392.7,2392.6,2.48401492]
[1750733823458,2.54366,2392.7,2392.6,3.31938492]
[1750733823859,3.379,2392.7,2392.5,7.8041415]
[1750733824067,1.12166,2392.6,2392.5,7.8041415]
[1750733824561,1.95703,2392.6,2392.5,6.9687515]
[1750733824856,0.83547,2392.4,2392.2,6.905]
[1750733825058,1.95714,2392.3,2392.2,6.905]
[1750733825255,1.83906,2392.3,2392.2,6.905]
[1750733825454,1.83906,2392.3,2392.2,7.74051]
[1750733826455,1.83906,2392.3,2392.2,0.83551]
[1750733827254,0.7174,2392.3,2392.2,0.83551]
[1750733827454,1.83906,2392.3,2392.2,0.83551]
[1750733827755,2.0853,2392.5,2392.4,0.83544]
[1750733827955,0.6633,2392.5,2392.4,3.31945492]
[1750733828160,3.2078,2392.7,2392.6,0.83537]
[1750733828361,3.2078,2392.7,2392.6,3.31938492]
[1750733828560,4.32946,2392.7,2392.6,3.31938492]
[1750733829859,5.1648,2392.7,2392.5,0.83539]
[1750733830061,1.12166,2392.6,2392.5,3.31940492]
[1750733830358,5.3216,2392.7,2392.6,0.83537]
[1750733830554,3.914,2392.7,2392.6,0.83537]
[1750733830754,4.32946,2392.7,2392.6,0.83537]
[1750733831558,1.12166,2392.7,2392.6,0.83537]
[1750733832458,1.957,2392.7,2392.5,3.31940492]
[1750733832661,1.12166,2392.6,2392.5,3.31940492]
[1750733836063,2.15270655,2392.6,2392.5,3.31940492]
[1750733836260,2.98807655,2392.6,2392.5,2.48401492]
[1750733836964,2.15270655,2392.6,2392.5,3.31942492]
[1750733837466,2.98809655,2392.6,2392.4,36.24944492]
[1750733837666,1.12166,2392.5,2392.4,29.33344492]
[1750733837889,0.83536,2392.7,2392.5,0.83541]
[1750733838067,1.03172957,2392.6,2392.5,0.83541]
[1750733838459,0.6701,2392.8,2392.4,35.38501492]
[1750733838675,0.6701,2392.8,2392.7,3.31935492]
[1750733839060,2.82363696,2392.8,2392.7,3.31935492]
[1750733842465,3.65893696,2392.8,2392.7,2.48401492]
[1750733842665,5.00263696,2392.8,2392.7,2.48401492]
[1750733843566,4.16733696,2392.8,2392.5,2.48401492]
[1750733843867,4.33257696,2392.7,2392.6,0.83537]
[1750733844457,3.49723696,2392.7,2392.6,0.83537]
[1750733845857,4.33257696,2392.7,2392.5,3.31940492]
[1750733846063,3.51273696,2392.6,2392.5,3.31940492]
[1750733846663,3.51273696,2392.6,2392.5,3.31942492]
[1750733848966,3.51273696,2392.6,2392.5,2.48401492]
[1750733849165,4.34810696,2392.6,2392.5,2.48401492]
[1750733849364,0.83541,2392.5,2392.4,6.887]
[1750733849569,8.25874696,2392.5,2392.4,6.887]
[1750733849867,8.25874696,2392.5,2392.1,29.15301492]
[1750733849868,7.42333696,2392.5,2392.1,10.04101492]
[1750733850066,1.12166,2392.2,2392.1,10.20652492]
[1750733850265,2.15353696,2392.2,2392.1,10.20652492]
[1750733850772,2.98906696,2392.2,2392.0,24.73556]
[1750733851066,1.12166,2392.2,2392.1,0.83555]
[1750733851272,3.57381982,2392.2,2392.0,31.62256]
[1750733851473,1.03285982,2392.1,2392.0,31.62258]
[1750733851670,1.03285982,2392.1,2392.0,34.10659492]
[1750733852072,1.4193,2392.2,2392.1,0.83555]
[1750733852268,3.57359292,2392.2,2392.1,0.83555]
[1750733852568,2.15429292,2392.2,2392.1,0.83555]
[1750733853875,2.15429292,2392.2,2392.0,34.10656492]
[1750733854069,1.4376,2392.2,2392.1,0.83555]
[1750733854270,2.47025823,2392.2,2392.1,0.83555]
[1750733854464,3.59191823,2392.2,2392.1,0.83555]
[1750733854876,4.42743823,2392.2,2392.0,34.10657492]
[1750733855172,1.12166,2392.1,2392.0,34.10657492]
[1750733855577,1.4376,2392.2,2392.0,34.10657492]
[1750733855765,1.12166,2392.1,2392.0,34.10657492]
[1750733857676,2.48726,2392.1,2392.0,34.10657492]
[1750733859881,1.12166,2392.1,2392.0,34.10657492]
[1750733860377,2.94486,2392.4,2392.1,0.83552]
[1750733860574,3.30561504,2392.3,2392.1,0.83552]
[1750733860778,3.59179504,2392.2,2392.1,0.83552]
[1750733862171,3.59179504,2392.2,2392.1,3.31953492]
[1750733867176,2.15369504,2392.2,2392.1,3.31953492]
[1750733867382,1.12166,2392.2,2392.1,3.31953492]
[1750733869585,0.6713,2392.4,2392.3,0.83548]
[1750733869886,3.2078,2392.5,2392.4,0.83544]
[1750733870085,3.2078,2392.5,2392.4,7.70044]
[1750733870774,0.8353,2392.8,2392.6,0.83536]
[1750733870980,2.15321152,2392.7,2392.6,0.83536]
[1750733871284,2.15321152,2392.7,2392.6,3.31937492]
[1750733872380,2.15321152,2392.7,2392.6,4.04307492]
[1750733875385,2.15321152,2392.7,2392.6,4.04308492]
[1750733876380,1.12166,2392.7,2392.6,4.04308492]
[1750733877586,2.15350645,2392.7,2392.6,4.04308492]
[1750733877787,1.12166,2392.7,2392.6,4.04308492]
[1750733878388,2.15355649,2392.7,2392.6,4.04308492]
[1750733878874,1.12166,2392.7,2392.6,4.04308492]
[1750733880491,1.957,2392.7,2392.6,4.04308492]
[1750733880682,1.12166,2392.7,2392.6,4.04308492]
[1750733882589,2.15318894,2392.7,2392.6,4.04308492]
[1750733883887,1.12166,2392.7,2392.6,4.04308492]
[1750733884498,4.04308,2392.9,2392.7,0.83531]
[1750733884788,1.3758,2393.0,2392.9,0.83527]
[1750733885197,2.49746,2393.0,2392.9,0.83527]
[1750733886895,2.4864607,2393.1,2393.0,0.83523]
[1750733887099,2.4864607,2393.1,2393.0,3.31924492]
[1750733887499,2.4864607,2393.1,2393.0,27.21924492]
[1750733889112,3.6081207,2393.1,2393.0,24.73523]
[1750733889813,3.6081207,2393.1,2393.0,23.9]
[1750733890305,3.6081207,2393.1,2393.0,24.73523]
[1750733891811,3.6081207,2393.1,2393.0,27.21924492]
[1750733892210,3.6081207,2393.1,2393.0,24.73523]
[1750733892715,5.0222207,2393.1,2393.0,24.73523]
[1750733893908,3.56423613,2393.1,2393.0,24.73523]
[1750733896914,2.15013613,2393.1,2393.0,27.21924492]
[1750733897122,2.1510306,2393.1,2393.0,27.21924492]
[1750733897310,1.12166,2393.1,2393.0,27.21924492]
[1750733898016,2.15104735,2393.1,2393.0,27.21924492]
[1750733898217,0.6813,2393.5,2393.0,60.52281492]
[1750733898411,3.2078,2393.6,2393.0,60.52281492]
[1750733898412,3.2078,2393.6,2393.5,0.83506]
[1750733898609,3.2078,2393.6,2393.5,7.67306]
[1750733898811,3.2078,2393.6,2393.5,8.33806]
[1750733899113,4.32946,2393.6,2393.5,8.33806]
[1750733899618,1.12166,2393.6,2393.5,8.33806]
[1750733904424,1.82126,2393.6,2393.5,6.838]
[1750733904931,3.18556,2393.6,2393.5,6.838]
[1750733905614,3.18556,2393.6,2393.5,7.67306]
[1750733906423,3.18556,2393.6,2393.5,6.838]
[1750733907217,3.18556,2393.6,2393.5,7.67306]
[1750733907523,3.18556,2393.6,2393.5,6.838]
[1750733908021,3.18556,2393.6,2393.5,7.67306]
[1750733910225,4.2092155,2393.6,2393.5,7.67306]
[1750733913823,11.69323042,2393.6,2393.0,23.9]
[1750733914020,1.12166,2393.1,2393.0,23.9]
[1750733914426,3.13846,2393.1,2393.0,23.9]
[1750733914626,4.16273552,2393.1,2393.0,23.9]
[1750733914927,3.13846,2393.1,2393.0,24.73523]
[1750733916026,3.13846,2393.1,2393.0,23.9]
[1750733916418,1.12166,2393.1,2393.0,27.21924492]
[1750733916628,1.12166,2393.1,2393.0,26.38401492]
[1750733917629,1.82556,2393.1,2393.0,26.38401492]
[1750733918824,1.12166,2393.1,2393.0,27.21924492]
[1750733919033,1.12166,2393.1,2393.0,26.38401492]
[1750733919528,2.14593556,2393.1,2393.0,26.38401492]
[1750733925037,2.98112556,2393.1,2393.0,23.9]
[1750733925236,3.46733556,2393.1,2393.0,23.9]
[1750733926737,3.46733556,2393.1,2393.0,24.73523]
[1750733927034,3.46733556,2393.1,2393.0,27.21924492]
[1750733927236,3.46733556,2393.1,2393.0,26.38401492]
[1750733927629,2.14593556,2393.1,2393.0,26.38401492]
[1750733929640,2.14584707,2393.1,2393.0,26.38401492]
[1750733930429,1.02418707,2393.1,2393.0,27.21924492]
[1750733931836,5.48264,2393.3,2393.0,27.21924492]
[1750733932135,1.12166,2393.1,2393.0,27.21924492]
[1750733932434,1.4397,2393.3,2393.1,0.83517]
[1750733932630,1.024476,2393.2,2393.1,3.31918492]
[1750733932939,1.024476,2393.2,2393.1,10.13218492]
[1750733934133,1.024476,2393.2,2393.1,9.29701492]
[1750733934638,1.024476,2393.2,2393.1,6.813]
[1750733935530,1.024476,2393.2,2393.1,7.64819]
[1750733935737,1.024476,2393.2,2393.1,6.813]
[1750733938738,1.024476,2393.2,2393.1,7.64819]
[1750733944346,2.146136,2393.2,2392.7,6.812]
[1750733944543,1.12166,2393.0,2392.9,0.83526]
[1750733944742,2.146136,2393.0,2392.8,27.21928492]
[1750733944953,1.02624052,2392.9,2392.8,27.21928492]
[1750733945246,1.539,2393.1,2392.8,27.21928492]
[1750733945448,1.12166,2393.0,2392.8,30.42708492]
[1750733945847,1.539,2393.1,2392.8,30.42708492]
[1750733946048,1.12166,2393.0,2392.8,30.42708492]
[1750733946545,1.02619651,2392.9,2392.8,30.42708492]
[1750733946740,1.02619651,2392.9,2392.8,56.28608492]
[1750733947141,1.539,2393.1,2392.8,56.28608492]
[1750733947341,1.12166,2393.0,2392.8,56.28608492]
[1750733948249,1.12166,2393.0,2392.9,0.7248]
[1750733950247,0.83526,2392.9,2392.8,3.2078]
[1750733950440,2.08824,2392.8,2392.1,4.16829968]
[1750733950638,1.12166,2392.2,2392.1,4.16829968]
[1750733950949,1.12166,2392.2,2392.1,28.06829968]
[1750733951143,1.95716,2392.2,2392.1,28.06829968]
[1750733951649,3.32006,2392.2,2392.1,23.9]
[1750733953149,3.32006,2392.2,2392.1,26.38401492]
[1750733954352,3.32006,2392.2,2392.1,23.9]
[1750733955047,2.48456,2392.2,2391.8,10.0218]
[1750733955254,1.95727,2391.9,2391.8,10.0218]